[Event "FIDE Chesscom Online Nations Cup"]
[White "Nakamura, Hikaru"]
[Black "Anand, Viswanathan"]
[Site "Online"]
[Round "6"]
[Annotator "RC"]
[Result "1/2-1/2"]
[Date "2020.05.07"]
[WhiteElo "2829"]
[BlackElo "2751"]
[PlyCount "138"]
[TimeControl "1500+10"]

1. c4 {[%emt 0:0:2]} e6 {[%emt 0:0:11]} 2. Nc3 {[%emt 0:0:7]} d5 {[%emt 0:0:0]} 3. d4 {[%emt 0:0:4]} Nf6 {[%emt 0:0:2]} 4. cxd5 {[%emt 0:0:3]} exd5 {[%emt 0:0:2]} 5. Bg5 {[%emt 0:0:8]} c6 {[%emt 0:0:3]} 6. e3 {[%emt 0:0:1]
} Bf5 {[%emt 0:0:5]} 7. Qf3 {[%emt 0:0:21]} Bg6 {[%emt 0:0:0]} 8. Bxf6 {[%emt 0:0:1]} Qxf6 {[%emt 0:0:1]} 9. Qxf6 {[%emt 0:0:2]} gxf6 {[%emt 0:0:2]} 10. Nf3 {[%emt 0:0:0]} Nd7 {[%emt 0:0:2]} 11. Nh4 {[%emt 0:0:9]
} Be7 {[%emt 0:0:2]} 12. Be2 {[%emt 0:0:1]} f5 {[%emt 0:0:0]} 13. Nf3 {[%emt 0:0:4]} Nb6 {[%emt 0:0:57]} 14. 0-0 {[%emt 0:0:18]} a5 {[%emt 0:0:53]} 15. Bd3 {[%emt 0:0:44]} Bd6 {[%emt 0:1:48]} 16. g3 {[%emt 0:0:0]} Ke7 {[%emt 0:1:41]} 17. Ne2 {[%emt 0:0:18]} Kf6 {[%emt 0:1:54]} 18. Nf4 {[%emt 0:0:2]} a4 {[%emt 0:0:13]} 19. Rac1 {[%emt 0:1:10]} Nd7 {[%emt 0:1:19]
} 20. Rc2 {[%emt 0:2:14]} Nf8 {[%emt 0:2:11]} 21. Ng2 {[%emt 0:0:0]} Ne6 {[%emt 0:0:19]} 22. Nfh4 {[%emt 0:0:28]} f4 {[%emt 0:2:6]} 23. Bxg6 {[%emt 0:1:59]} hxg6 {[%emt 0:0:6]} 24. gxf4 {[%emt 0:0:1]} Rag8 {[%emt 0:3:8]
} 25. Kh1 {[%emt 0:1:41]} g5 {[%emt 0:0:44]} 26. fxg5+ {[%emt 0:0:0]
} Nxg5 {[%emt 0:0:2]} 27. f3 {[%emt 0:0:11]} Ke6 {[%emt 0:0:0]} 28. Re2 {[%emt 0:0:7]} Kd7 {[%emt 0:0:55]} 29. e4 {[%emt 0:6:41]} Rh5 {[%emt 0:0:26]} 30. e5 {[%emt 0:5:20]} Bc7 {[%emt 0:0:13]} 31. f4 {[%emt 0:0:0]} Ne4 {[%emt 0:0:6]} 32. f5 {[%emt 0:0:35]} Rg4 {[%emt 0:1:22]} 33. Rf3 {[%emt 0:0:30]} Rgxh4 {[%emt 0:1:33]} 34. Nxh4 {[%emt 0:0:0]} Rxh4 {[%emt 0:0:2]
} 35. Rg2 {[%emt 0:0:2]} Rh7 {[%emt 0:0:15]} 36. b3 {[%emt 0:0:0]} c5 {[%emt 0:0:18]} 37. e6+ {[%emt 0:0:6]} Ke7 {[%emt 0:0:49]} 38. dxc5 {[%emt 0:0:2]} fxe6 {[%emt 0:0:7]} 39. fxe6 {[%emt 0:0:3]} Kxe6 {[%emt 0:0:4]
} 40. Rg6+ {[%emt 0:0:41]} Ke5 {[%emt 0:0:7]} 41. c6 {[%emt 0:0:0]} bxc6 {[%emt 0:0:17]} 42. Rxc6 {[%emt 0:0:0]} Bd6 {[%emt 0:0:23]} 43. bxa4 {[%emt 0:0:4]} Ra7 {[%emt 0:0:7]} 44. Rc2 {[%emt 0:0:6]} Rxa4 {[%emt 0:0:10]
} 45. h4 {[%emt 0:0:15]} Rc4 {[%emt 0:0:8]} 46. Re2 {[%emt 0:0:0]} d4 {[%emt 0:0:28]} 47. Kg2 {[%emt 0:0:11]} Rc7 {[%emt 0:0:20]} 48. h5 {[%emt 0:0:30]} Rh7 {[%emt 0:0:10]} 49. Rh3 {[%emt 0:0:8]} Kd5 {[%emt 0:0:0]} 50. h6 {[%emt 0:0:4]} Nf6 {[%emt 0:0:19]} 51. a4 {[%emt 0:0:17]} Ng4 {[%emt 0:0:8]} 52. a5 {[%emt 0:0:2]} Nxh6 {[%emt 0:0:26]} 53. Rh5+ {[%emt 0:0:32]
} Kc4 {[%emt 0:0:9]} 54. Rc2+ {[%emt 0:0:10]} Kd3 {[%emt 0:0:0]} 55. Rc6 {[%emt 0:0:1]} Bf4 {[%emt 0:0:4]} 56. Rf6 {[%emt 0:0:19]} Be3 {[%emt 0:0:35]} 57. Kf3 {[%emt 0:0:9]} Ra7 {[%emt 0:0:40]} 58. a6 {[%emt 0:0:0]} Nf7 {[%emt 0:0:6]} 59. Rb5 {[%emt 0:0:14]} Ng5+ {[%emt 0:0:2]} 60. Kg4 {[%emt 0:0:5]} Ne4 {[%emt 0:0:7]} 61. Rg6 {[%emt 0:0:30]} Ra8 {[%emt 0:2:19]
} 62. Ra5 {[%emt 0:0:11]} Ke2 {[%emt 0:0:45]} 63. Ra2+ {[%emt 0:0:7]
} Nd2 {[%emt 0:0:22]} 64. a7 {[%emt 0:0:7]} d3 {[%emt 0:0:9]
} 65. Re6 {[%emt 0:0:11]} Kf2 {[%emt 0:0:3]} 66. Rd6 {[%emt 0:0:6]} Rxa7 {[%emt 0:0:4]
} 67. Rxa7 {[%emt 0:0:3]} Bxa7 {[%emt 0:0:2]} 68. Rxd3 {[%emt 0:0:0]
} Be3 {[%emt 0:0:1]} 69. Rxe3 {[%emt 0:0:2]} Kxe3 {[%emt 0:0:0]} 1/2-1/2

[Event "FIDE Chesscom Online Nations Cup"]
[White "Nepomniachtchi, Ian"]
[Black "Vachier-Lagrave, Maxime"]
[Site "Online"]
[Round "6"]
[Annotator "RC"]
[Result "0-1"]
[Date "2020.05.07"]
[WhiteElo "2778"]
[BlackElo "2860"]
[PlyCount "222"]
[TimeControl "1500+10"]

1. e4 {[%emt 0:0:2]} c6 {[%emt 0:0:1]} 2. d4 {[%emt 0:0:24]} d5 {[%emt 0:0:0]} 3. e5 {[%emt 0:0:1]} Bf5 {[%emt 0:0:3]} 4. Nf3 {[%emt 0:0:6]} e6 {[%emt 0:0:7]} 5. Be2 {[%emt 0:0:3]} c5 {[%emt 0:0:36]} 6. Be3 {[%emt 0:0:0]} Qb6 {[%emt 0:0:6]} 7. Nc3 {[%emt 0:2:50]} Nc6 {[%emt 0:0:3]} 8. Na4 {[%emt 0:3:0]} Qa5+ {[%emt 0:0:3]} 9. c3 {[%emt 0:0:2]} cxd4 {[%emt 0:0:1]
} 10. Nxd4 {[%emt 0:1:8]} Nxd4 {[%emt 0:0:3]} 11. Bxd4 {[%emt 0:0:33]
} Ne7 {[%emt 0:1:10]} 12. g4 {[%emt 0:2:38]} Bg6 {[%emt 0:0:0]} 13. Nc5 {[%emt 0:0:5]} Qc7 {[%emt 0:0:3]} 14. h4 {[%emt 0:1:40]} h5 {[%emt 0:1:24]
} 15. gxh5 {[%emt 0:0:4]} Bf5 {[%emt 0:0:1]} 16. Qb3 {[%emt 0:5:4]
} 0-0-0 {[%emt 0:3:4]} 17. a4 {[%emt 0:1:13]} Nc6 {[%emt 0:0:0]} 18. a5 {[%emt 0:0:2]} Nxd4 {[%emt 0:3:42]} 19. cxd4 {[%emt 0:0:2]} Bxc5 {[%emt 0:0:0]} 20. dxc5 {[%emt 0:0:25]} Qxc5 {[%emt 0:0:4]} 21. 0-0 {[%emt 0:0:2]
} Kb8 {[%emt 0:0:2]} 22. Rfc1 {[%emt 0:0:5]} Qe7 {[%emt 0:0:0]} 23. a6 {[%emt 0:1:47]} b6 {[%emt 0:1:16]} 24. Rc6 {[%emt 0:0:7]} Be4 {[%emt 0:4:56]
} 25. f3 {[%emt 0:1:38]} Rxh5 {[%emt 0:0:3]} 26. fxe4 {[%emt 0:3:11]
} Rxh4 {[%emt 0:0:2]} 27. Bf3 {[%emt 0:0:1]} Rh3 {[%emt 0:0:0]} 28. exd5 {[%emt 0:0:54]} Qg5+ {[%emt 0:0:2]} 29. Kf1 {[%emt 0:0:8]} Qf4 {[%emt 0:0:3]} 30. Ra3 {[%emt 0:1:18]} Rh1+ {[%emt 0:0:12]} 31. Ke2 {[%emt 0:0:2]
} Rh2+ {[%emt 0:1:39]} 32. Kf1 {[%emt 0:0:2]} Rh1+ {[%emt 0:0:0]} 33. Ke2 {[%emt 0:0:2]} Qxe5+ {[%emt 0:1:4]} 34. Kd3 {[%emt 0:0:2]
} Rxd5+ {[%emt 0:0:1]} 35. Bxd5 {[%emt 0:0:17]} Rh3+ {[%emt 0:0:3]} 36. Kc2 {[%emt 0:1:4]} Rxb3 {[%emt 0:0:5]} 37. Rxb3 {[%emt 0:0:0]} Qe2+ {[%emt 0:0:16]
} 38. Kb1 {[%emt 0:0:14]} exd5 {[%emt 0:0:1]} 39. Ra3 {[%emt 0:0:30]
} d4 {[%emt 0:0:16]} 40. Rc2 {[%emt 0:0:8]} Qb5 {[%emt 0:0:0]} 41. Rd2 {[%emt 0:0:4]} Qf1+ {[%emt 0:0:13]} 42. Ka2 {[%emt 0:0:3]} Qc4+ {[%emt 0:0:1]} 43. Kb1 {[%emt 0:0:6]} g5 {[%emt 0:0:19]} 44. Rf3 {[%emt 0:0:14]
} g4 {[%emt 0:0:44]} 45. Rf4 {[%emt 0:0:2]} g3 {[%emt 0:0:21]
} 46. Rdxd4 {[%emt 0:0:12]} Qe6 {[%emt 0:0:40]} 47. Rg4 {[%emt 0:0:19]} b5 {[%emt 0:0:1]
} 48. Rg8+ {[%emt 0:0:21]} Kc7 {[%emt 0:0:3]} 49. Rdg4 {[%emt 0:0:2]
} Qxa6 {[%emt 0:0:18]} 50. Rxg3 {[%emt 0:0:3]} Qe6 {[%emt 0:0:0]} 51. Rc3+ {[%emt 0:0:6]} Kb7 {[%emt 0:0:5]} 52. Rgg3 {[%emt 0:0:10]
} b4 {[%emt 0:0:7]} 53. Rce3 {[%emt 0:0:2]} Qf5+ {[%emt 0:0:2]} 54. Ka2 {[%emt 0:0:3]
} Qd5+ {[%emt 0:0:2]} 55. b3 {[%emt 0:0:10]} a5 {[%emt 0:0:0]} 56. Rd3 {[%emt 0:0:2]} Qc6 {[%emt 0:0:34]} 57. Rgf3 {[%emt 0:0:6]} Qc2+ {[%emt 0:0:20]} 58. Ka1 {[%emt 0:0:2]} f5 {[%emt 0:0:16]} 59. Rfe3 {[%emt 0:0:1]
} Qc1+ {[%emt 0:0:10]} 60. Ka2 {[%emt 0:0:2]} Qc2+ {[%emt 0:0:0]} 61. Ka1 {[%emt 0:0:1]} Qc7 {[%emt 0:0:19]} 62. Kb1 {[%emt 0:0:21]} f4 {[%emt 0:0:13]} 63. Rh3 {[%emt 0:0:7]} Qe7 {[%emt 0:0:8]} 64. Kc2 {[%emt 0:0:7]
} Qe2+ {[%emt 0:0:15]} 65. Kc1 {[%emt 0:0:23]} Qe4 {[%emt 0:0:0]} 66. Kd2 {[%emt 0:0:7]} a4 {[%emt 0:0:31]} 67. bxa4 {[%emt 0:0:24]} Kb6 {[%emt 0:0:21]} 68. Rhf3 {[%emt 0:0:2]} Ka5 {[%emt 0:0:4]} 69. Rf1 {[%emt 0:0:39]
} Qg2+ {[%emt 0:0:57]} 70. Ke1 {[%emt 0:0:2]} Qc2 {[%emt 0:0:0]} 71. Rff3 {[%emt 0:0:43]} Kxa4 {[%emt 0:0:4]} 72. Rd4 {[%emt 0:0:23]} Qc1+ {[%emt 0:0:13]} 73. Rd1 {[%emt 0:0:2]} Qc5 {[%emt 0:0:10]} 74. Kf1 {[%emt 0:0:17]
} Qc4+ {[%emt 0:0:4]} 75. Kg1 {[%emt 0:0:3]} Qg8+ {[%emt 0:0:0]} 76. Kf1 {[%emt 0:0:4]} Qg4 {[%emt 0:0:7]} 77. Kf2 {[%emt 0:0:3]} Qh4+ {[%emt 0:0:5]} 78. Kg2 {[%emt 0:0:4]} Qg5+ {[%emt 0:0:1]} 79. Kf2 {[%emt 0:0:5]
} Qe5 {[%emt 0:0:21]} 80. Rf1 {[%emt 0:0:27]} b3 {[%emt 0:0:0]} 81. Kg1 {[%emt 0:0:3]} Qd4+ {[%emt 0:0:24]} 82. Kh2 {[%emt 0:0:3]} Qh8+ {[%emt 0:0:7]} 83. Kg1 {[%emt 0:0:2]} Qg7+ {[%emt 0:0:2]} 84. Kh2 {[%emt 0:0:2]
} Qh7+ {[%emt 0:0:1]} 85. Kg1 {[%emt 0:0:2]} Qg6+ {[%emt 0:0:0]} 86. Kh2 {[%emt 0:0:2]} b2 {[%emt 0:0:13]} 87. Rxf4+ {[%emt 0:0:2]} Kb3 {[%emt 0:0:18]} 88. R4f3+ {[%emt 0:0:27]} Ka2 {[%emt 0:0:14]} 89. R3f2 {[%emt 0:0:2]
} Qh7+ {[%emt 0:0:12]} 90. Kg1 {[%emt 0:0:4]} Qd3 {[%emt 0:0:0]} 91. Kh2 {[%emt 0:0:4]} Ka3 {[%emt 0:0:30]} 92. Rf7 {[%emt 0:0:50]} Qd6+ {[%emt 0:0:12]} 93. Kg2 {[%emt 0:0:16]} Qd5+ {[%emt 0:0:2]} 94. R7f3+ {[%emt 0:0:7]} Ka2 {[%emt 0:0:6]} 95. R1f2 {[%emt 0:0:3]} Ka1 {[%emt 0:0:0]} 96. Kg3 {[%emt 0:0:16]} Qd6+ {[%emt 0:0:3]} 97. Kg2 {[%emt 0:0:6]} b1=Q {[%emt 0:0:3]} 98. Rf1 {[%emt 0:0:1]} Qxf1+ {[%emt 0:0:16]} 99. Kxf1 {[%emt 0:0:3]} Kb2 {[%emt 0:0:2]} 100. Ke2 {[%emt 0:0:6]} Kc2 {[%emt 0:0:0]} 101. Re3 {[%emt 0:0:6]} Qd5 {[%emt 0:0:6]} 102. Kf2 {[%emt 0:0:11]
} Qf5+ {[%emt 0:0:14]} 103. Ke2 {[%emt 0:0:3]} Qg4+ {[%emt 0:0:2]} 104. Rf3 {[%emt 0:0:1]} Qe4+ {[%emt 0:0:2]} 105. Kf2 {[%emt 0:0:10]} Kd2 {[%emt 0:0:1]
} 106. Ra3 {[%emt 0:0:55]} Qd5 {[%emt 0:0:3]} 107. Rg3 {[%emt 0:0:12]
} Qe5 {[%emt 0:0:14]} 108. Kf3 {[%emt 0:0:7]} Qf5+ {[%emt 0:0:0]} 109. Kg2 {[%emt 0:0:15]} Ke2 {[%emt 0:0:1]} 110. Kg1 {[%emt 0:0:9]
} Qf2+ {[%emt 0:0:14]} 111. Kh1 {[%emt 0:0:3]} Kf1 {[%emt 0:0:6]} 0-1

[Event "FIDE Chesscom Online Nations Cup"]
[White "Radjabov, Teimour"]
[Black "Ding, Liren"]
[Site "Online"]
[Round "6"]
[Annotator "RC"]
[Result "0-1"]
[Date "2020.05.07"]
[WhiteElo "2758"]
[BlackElo "2836"]
[PlyCount "106"]
[TimeControl "1500+10"]

1. Nf3 {[%emt 0:0:2]} Nf6 {[%emt 0:0:13]} 2. b3 {[%emt 0:0:1]} d5 {[%emt 0:0:24]
} 3. Bb2 {[%emt 0:0:2]} Bf5 {[%emt 0:0:1]} 4. e3 {[%emt 0:0:0]} h6 {[%emt 0:0:27]} 5. d3 {[%emt 0:0:17]} e6 {[%emt 0:0:2]} 6. Nbd2 {[%emt 0:0:1]
} Be7 {[%emt 0:0:25]} 7. h3 {[%emt 0:0:25]} Bh7 {[%emt 0:0:7]
} 8. g4 {[%emt 0:0:13]} c5 {[%emt 0:1:59]} 9. Ne5 {[%emt 0:3:43]} Nbd7 {[%emt 0:0:15]
} 10. Nxd7 {[%emt 0:1:9]} Qxd7 {[%emt 0:0:4]} 11. Bg2 {[%emt 0:0:2]
} d4 {[%emt 0:1:27]} 12. 0-0 {[%emt 0:1:56]} 0-0 {[%emt 0:0:0]} 13. Nc4 {[%emt 0:0:50]} Rad8 {[%emt 0:0:15]} 14. Qf3 {[%emt 0:1:20]} Nd5 {[%emt 0:1:12]} 15. exd4 {[%emt 0:3:5]} cxd4 {[%emt 0:0:17]} 16. Bxd4 {[%emt 0:0:2]
} Nb4 {[%emt 0:0:2]} 17. Bc3 {[%emt 0:2:38]} Nxc2 {[%emt 0:0:0]} 18. Rad1 {[%emt 0:0:58]} Nd4 {[%emt 0:0:49]} 19. Qe3 {[%emt 0:1:46]} Bf6 {[%emt 0:0:59]} 20. Ne5 {[%emt 0:2:5]} Qd6 {[%emt 0:5:31]} 21. Bxd4 {[%emt 0:3:36]
} Qxd4 {[%emt 0:0:3]} 22. Qxd4 {[%emt 0:0:3]} Rxd4 {[%emt 0:0:0]} 23. Rfe1 {[%emt 0:0:1]} Bxe5 {[%emt 0:2:47]} 24. Rxe5 {[%emt 0:0:0]} b6 {[%emt 0:0:1]} 25. Be4 {[%emt 0:0:25]} Rc8 {[%emt 0:1:9]} 26. Bxh7+ {[%emt 0:1:0]} Kxh7 {[%emt 0:0:40]} 27. Re4 {[%emt 0:0:23]} Rd5 {[%emt 0:0:3]
} 28. Ra4 {[%emt 0:0:29]} Rc7 {[%emt 0:0:15]} 29. Kg2 {[%emt 0:0:0]} Kg6 {[%emt 0:0:28]} 30. Rd2 {[%emt 0:0:3]} Rcd7 {[%emt 0:0:30]} 31. f4 {[%emt 0:1:30]} Kf6 {[%emt 0:1:57]} 32. d4 {[%emt 0:0:25]} g5 {[%emt 0:0:0]} 33. fxg5+ {[%emt 0:0:29]} hxg5 {[%emt 0:0:13]} 34. Kf3 {[%emt 0:0:0]} Kg6 {[%emt 0:0:8]} 35. Rc4 {[%emt 0:0:19]} f6 {[%emt 0:0:22]} 36. a4 {[%emt 0:0:9]
} R5d6 {[%emt 0:0:32]} 37. Ke3 {[%emt 0:0:24]} f5 {[%emt 0:0:0]} 38. Rcc2 {[%emt 0:0:2]} Rh7 {[%emt 0:0:29]} 39. Rh2 {[%emt 0:0:2]} Rh4 {[%emt 0:0:11]} 40. Rcg2 {[%emt 0:0:3]} Kf6 {[%emt 0:0:1]} 41. Rf2 {[%emt 0:0:5]
} Kg6 {[%emt 0:0:20]} 42. Rfg2 {[%emt 0:0:1]} a5 {[%emt 0:0:0]} 43. Rh1 {[%emt 0:0:6]} Rh8 {[%emt 0:0:25]} 44. Rhh2 {[%emt 0:0:23]} Rc6 {[%emt 0:1:51]} 45. Kd3 {[%emt 0:0:6]} Rhc8 {[%emt 0:0:41]} 46. Rc2 {[%emt 0:0:43]
} Rxc2 {[%emt 0:0:1]} 47. Rxc2 {[%emt 0:0:2]} Rxc2 {[%emt 0:0:0]} 48. Kxc2 {[%emt 0:0:1]} Kf6 {[%emt 0:0:1]} 49. Kd3 {[%emt 0:0:30]} Ke7 {[%emt 0:0:7]} 50. Ke3 {[%emt 0:0:8]} Kd6 {[%emt 0:0:11]} 51. Kf2 {[%emt 0:0:10]
} fxg4 {[%emt 0:0:28]} 52. hxg4 {[%emt 0:0:2]} Kd5 {[%emt 0:0:0]} 53. Ke3 {[%emt 0:0:21]} e5 {[%emt 0:0:2]} 0-1

[Event "FIDE Chesscom Online Nations Cup"]
[White "Ju, Wenjun"]
[Black "Muzychuk, Mariya"]
[Site "Online"]
[Round "6"]
[Annotator "RC"]
[Result "1-0"]
[Date "2020.05.07"]
[WhiteElo "2610"]
[BlackElo "2506"]
[PlyCount "139"]
[TimeControl "1500+10"]

1. d4 {[%emt 0:0:6]} Nf6 {[%emt 0:0:3]} 2. c4 {[%emt 0:0:11]} g6 {[%emt 0:0:0]} 3. g3 {[%emt 0:0:7]} c6 {[%emt 0:0:19]} 4. Bg2 {[%emt 0:0:4]} d5 {[%emt 0:0:2]
} 5. Qa4 {[%emt 0:0:8]} Bg7 {[%emt 0:0:14]} 6. cxd5 {[%emt 0:0:0]} Nxd5 {[%emt 0:0:1]} 7. Nf3 {[%emt 0:0:1]} Bg4 {[%emt 0:0:39]} 8. e3 {[%emt 0:0:5]} 0-0 {[%emt 0:0:46]} 9. Nc3 {[%emt 0:0:22]} Nb6 {[%emt 0:0:0]} 10. Qc2 {[%emt 0:0:34]} N8d7 {[%emt 0:1:1]} 11. 0-0 {[%emt 0:0:25]} e5 {[%emt 0:1:58]} 12. Nxe5 {[%emt 0:4:21]} Nxe5 {[%emt 0:0:18]} 13. dxe5 {[%emt 0:0:3]
} Bxe5 {[%emt 0:0:9]} 14. Qe4 {[%emt 0:0:53]} Bxc3 {[%emt 0:0:0]} 15. bxc3 {[%emt 0:0:4]} Bf5 {[%emt 0:3:33]} 16. Qb4 {[%emt 0:2:35]} a5 {[%emt 0:2:41]} 17. Qd4 {[%emt 0:0:51]} Re8 {[%emt 0:0:52]} 18. Ba3 {[%emt 0:2:31]
} Qxd4 {[%emt 0:1:3]} 19. cxd4 {[%emt 0:0:4]} Nc4 {[%emt 0:0:0]} 20. Bc5 {[%emt 0:0:11]} Nb2 {[%emt 0:6:36]} 21. Rfc1 {[%emt 0:4:55]} Nd3 {[%emt 0:0:19]} 22. Rc3 {[%emt 0:0:3]} Nxc5 {[%emt 0:0:27]} 23. Rxc5 {[%emt 0:0:12]
} a4 {[%emt 0:1:8]} 24. d5 {[%emt 0:3:15]} cxd5 {[%emt 0:0:0]} 25. Bxd5 {[%emt 0:0:7]} Be4 {[%emt 0:1:0]} 26. Bxe4 {[%emt 0:0:11]} Rxe4 {[%emt 0:0:2]} 27. Rb1 {[%emt 0:0:2]} Re7 {[%emt 0:0:23]} 28. Kf1 {[%emt 0:1:11]
} h5 {[%emt 0:1:18]} 29. h4 {[%emt 0:0:27]} Kg7 {[%emt 0:0:34]
} 30. Ke2 {[%emt 0:0:36]} Ra6 {[%emt 0:0:15]} 31. Rb4 {[%emt 0:0:30]} Rd7 {[%emt 0:0:11]
} 32. Rcc4 {[%emt 0:0:58]} a3 {[%emt 0:0:5]} 33. Ra4 {[%emt 0:0:0]} Rb6 {[%emt 0:0:16]} 34. Rc2 {[%emt 0:0:11]} Rb1 {[%emt 0:0:47]} 35. Rxa3 {[%emt 0:0:4]} Rdd1 {[%emt 0:0:4]} 36. Rac3 {[%emt 0:0:28]} Re1+ {[%emt 0:0:15]
} 37. Kf3 {[%emt 0:0:2]} Rb6 {[%emt 0:0:4]} 38. Rc7 {[%emt 0:0:0]} Ra1 {[%emt 0:0:22]} 39. Rd7 {[%emt 0:0:33]} Ra6 {[%emt 0:0:9]} 40. Rdd2 {[%emt 0:0:3]} Ra4 {[%emt 0:0:29]} 41. Rb2 {[%emt 0:0:4]} b5 {[%emt 0:0:5]
} 42. e4 {[%emt 0:0:20]} Re1 {[%emt 0:0:15]} 43. Re2 {[%emt 0:0:0]} Rxe2 {[%emt 0:0:53]} 44. Rxe2 {[%emt 0:0:3]} Ra3+ {[%emt 0:0:20]} 45. Kf4 {[%emt 0:0:4]} Kf6 {[%emt 0:0:5]} 46. Rc2 {[%emt 0:0:11]} Ke6 {[%emt 0:0:5]
} 47. f3 {[%emt 0:0:32]} Kf6 {[%emt 0:0:10]} 48. e5+ {[%emt 0:0:0]} Ke6 {[%emt 0:0:6]} 49. Rc6+ {[%emt 0:0:5]} Ke7 {[%emt 0:0:7]} 50. Rb6 {[%emt 0:0:15]} Rxa2 {[%emt 0:0:5]} 51. Rxb5 {[%emt 0:0:2]} Kf8 {[%emt 0:0:18]
} 52. e6 {[%emt 0:0:25]} Ra6 {[%emt 0:0:42]} 53. Rb8+ {[%emt 0:0:0]} Ke7 {[%emt 0:0:4]} 54. exf7 {[%emt 0:0:2]} Kxf7 {[%emt 0:0:9]} 55. Kg5 {[%emt 0:0:2]} Ra5+ {[%emt 0:0:14]} 56. Kh6 {[%emt 0:0:3]} Ra3 {[%emt 0:0:1]
} 57. Rb7+ {[%emt 0:0:3]} Kf8 {[%emt 0:0:16]} 58. Rg7 {[%emt 0:0:18]
} Rxf3 {[%emt 0:0:9]} 59. Rxg6 {[%emt 0:0:1]} Rf5 {[%emt 0:0:0]} 60. Rg5 {[%emt 0:0:2]} Rf6+ {[%emt 0:0:10]} 61. Kxh5 {[%emt 0:0:2]
} Kf7 {[%emt 0:0:0]} 62. Kg4 {[%emt 0:0:2]} Ra6 {[%emt 0:0:3]} 63. Rf5+ {[%emt 0:0:26]
} Kg6 {[%emt 0:0:3]} 64. h5+ {[%emt 0:0:4]} Kh6 {[%emt 0:0:0]} 65. Kh4 {[%emt 0:0:2]} Ra1 {[%emt 0:0:1]} 66. Rf6+ {[%emt 0:0:3]} Kg7 {[%emt 0:0:2]} 67. Rb6 {[%emt 0:0:3]} Ra5 {[%emt 0:0:4]} 68. g4 {[%emt 0:0:2]
} Rc5 {[%emt 0:0:2]} 69. Rb7+ {[%emt 0:0:13]} Kf6 {[%emt 0:0:0]} 70. g5+ {[%emt 0:0:13]} 1-0

[Event "FIDE Chesscom Online Nations Cup"]
[White "Muzychuk, Anna"]
[Black "Goryachkina, Aleksandra"]
[Site "Online"]
[Round "6"]
[Annotator "RC"]
[Result "1/2-1/2"]
[Date "2020.05.07"]
[WhiteElo "2533"]
[BlackElo "2502"]
[PlyCount "75"]
[TimeControl "1500+10"]

1. e4 {[%emt 0:0:4]} e6 {[%emt 0:0:15]} 2. d4 {[%emt 0:0:7]} d5 {[%emt 0:0:0]} 3. exd5 {[%emt 0:0:6]} exd5 {[%emt 0:0:2]} 4. Nf3 {[%emt 0:0:2]} Nc6 {[%emt 0:0:33]} 5. Nc3 {[%emt 0:1:9]} Bb4 {[%emt 0:1:22]} 6. Bd3 {[%emt 0:0:24]
} Nge7 {[%emt 0:0:51]} 7. 0-0 {[%emt 0:0:29]} 0-0 {[%emt 0:0:0]} 8. h3 {[%emt 0:1:9]} Bf5 {[%emt 0:1:24]} 9. Ne2 {[%emt 0:0:27]} Bd6 {[%emt 0:0:34]
} 10. c3 {[%emt 0:0:41]} Bxd3 {[%emt 0:1:54]} 11. Qxd3 {[%emt 0:0:3]
} Ng6 {[%emt 0:0:17]} 12. Bd2 {[%emt 0:4:32]} Qd7 {[%emt 0:0:0]} 13. Rae1 {[%emt 0:0:3]} Rae8 {[%emt 0:1:7]} 14. Ng3 {[%emt 0:0:12]} Bxg3 {[%emt 0:1:15]} 15. fxg3 {[%emt 0:0:3]} a6 {[%emt 0:0:39]} 16. g4 {[%emt 0:0:14]
} Rxe1 {[%emt 0:0:50]} 17. Rxe1 {[%emt 0:0:3]} Re8 {[%emt 0:0:0]} 18. Qf5 {[%emt 0:1:1]} Rxe1+ {[%emt 0:2:17]} 19. Bxe1 {[%emt 0:0:0]} Qd8 {[%emt 0:2:18]} 20. Ng5 {[%emt 0:2:0]} Qe8 {[%emt 0:0:16]} 21. Bg3 {[%emt 0:0:22]} h6 {[%emt 0:0:33]} 22. Nf3 {[%emt 0:0:9]} Nce7 {[%emt 0:0:0]} 23. Qd3 {[%emt 0:1:27]} Qd7 {[%emt 0:0:10]} 24. Qe2 {[%emt 0:1:26]} Nc8 {[%emt 0:1:14]} 25. g5 {[%emt 0:1:8]} hxg5 {[%emt 0:0:46]} 26. Nxg5 {[%emt 0:0:7]
} Nf8 {[%emt 0:0:28]} 27. Nf3 {[%emt 0:0:53]} f6 {[%emt 0:0:0]} 28. Ne1 {[%emt 0:0:36]} Nd6 {[%emt 0:0:42]} 29. Bxd6 {[%emt 0:0:45]} Qxd6 {[%emt 0:0:5]} 30. Nd3 {[%emt 0:0:1]} Ne6 {[%emt 0:1:2]} 31. Qh5 {[%emt 0:0:58]
} Qd7 {[%emt 0:0:27]} 32. Qf5 {[%emt 0:0:24]} Qd6 {[%emt 0:0:0]} 33. h4 {[%emt 0:1:8]} c6 {[%emt 0:0:26]} 34. Kf2 {[%emt 0:0:22]} Qe7 {[%emt 0:0:30]
} 35. g3 {[%emt 0:0:20]} Qf7 {[%emt 0:0:18]} 36. Qg4 {[%emt 0:0:0]} g6 {[%emt 0:1:37]} 37. Nf4 {[%emt 0:1:35]} Nxf4 {[%emt 0:0:6]} 38. Qxf4 {[%emt 0:0:2]} 1/2-1/2

[Event "FIDE Chesscom Online Nations Cup"]
[White "Koneru, Humpy"]
[Black "Krush, Irina"]
[Site "Online"]
[Round "6"]
[Annotator "RC"]
[Result "1/2-1/2"]
[Date "2020.05.07"]
[WhiteElo "2483"]
[BlackElo "2392"]
[PlyCount "106"]
[TimeControl "1500+10"]

1. d4 {[%emt 0:0:2]} d5 {[%emt 0:0:2]} 2. c4 {[%emt 0:0:5]} dxc4 {[%emt 0:0:2]
} 3. Nf3 {[%emt 0:0:2]} Nf6 {[%emt 0:0:3]} 4. e3 {[%emt 0:0:0]} e6 {[%emt 0:0:1]} 5. Bxc4 {[%emt 0:0:2]} c5 {[%emt 0:0:2]} 6. 0-0 {[%emt 0:0:13]
} Nc6 {[%emt 0:0:1]} 7. Qe2 {[%emt 0:0:14]} a6 {[%emt 0:0:47]
} 8. Nc3 {[%emt 0:0:20]} b5 {[%emt 0:0:15]} 9. Bd3 {[%emt 0:0:15]} cxd4 {[%emt 0:2:30]
} 10. exd4 {[%emt 0:0:36]} Be7 {[%emt 0:0:12]} 11. Bg5 {[%emt 0:5:29]
} Bb7 {[%emt 0:9:38]} 12. Bxf6 {[%emt 0:5:6]} Bxf6 {[%emt 0:0:0]} 13. d5 {[%emt 0:0:59]} Nb4 {[%emt 0:2:38]} 14. Bxb5+ {[%emt 0:0:27]} Kf8 {[%emt 0:0:3]} 15. Bc4 {[%emt 0:1:54]} Nxd5 {[%emt 0:0:49]} 16. Ne4 {[%emt 0:1:53]
} g6 {[%emt 0:2:1]} 17. Rac1 {[%emt 0:3:44]} Kg7 {[%emt 0:0:0]} 18. Rfd1 {[%emt 0:1:53]} Qe7 {[%emt 0:0:4]} 19. Nxf6 {[%emt 0:1:51]} Qxf6 {[%emt 0:0:10]} 20. Qe5 {[%emt 0:0:15]} Rhd8 {[%emt 0:0:57]} 21. Kf1 {[%emt 0:0:44]
} a5 {[%emt 0:0:26]} 22. Qxf6+ {[%emt 0:0:50]} Kxf6 {[%emt 0:0:0]} 23. Nd2 {[%emt 0:0:7]} Nb4 {[%emt 0:2:29]} 24. f3 {[%emt 0:0:43]} Nd3 {[%emt 0:1:3]} 25. Bxd3 {[%emt 0:0:2]} Rxd3 {[%emt 0:0:2]} 26. Nb3 {[%emt 0:0:31]
} Rxd1+ {[%emt 0:0:40]} 27. Rxd1 {[%emt 0:0:2]} Bd5 {[%emt 0:0:0]} 28. Rd4 {[%emt 0:0:27]} Bxb3 {[%emt 0:1:54]} 29. axb3 {[%emt 0:0:3]
} Rb8 {[%emt 0:0:0]} 30. Rd3 {[%emt 0:0:16]} e5 {[%emt 0:0:21]} 31. Ke2 {[%emt 0:0:31]
} Ke6 {[%emt 0:0:13]} 32. Kd1 {[%emt 0:0:16]} f5 {[%emt 0:0:0]} 33. Kc2 {[%emt 0:0:6]} e4 {[%emt 0:1:3]} 34. fxe4 {[%emt 0:0:10]} fxe4 {[%emt 0:0:0]} 35. Rd4 {[%emt 0:0:11]} Ke5 {[%emt 0:0:3]} 36. Ra4 {[%emt 0:0:15]
} Rb5 {[%emt 0:0:8]} 37. Kd2 {[%emt 0:0:6]} Kf4 {[%emt 0:0:0]} 38. Ke2 {[%emt 0:0:3]} Rxb3 {[%emt 0:0:57]} 39. g3+ {[%emt 0:0:3]} Ke5 {[%emt 0:0:1]} 40. Rxa5+ {[%emt 0:0:4]} Kd4 {[%emt 0:0:3]} 41. Ra4+ {[%emt 0:0:7]
} Ke5 {[%emt 0:0:1]} 42. Ra5+ {[%emt 0:0:5]} Kf6 {[%emt 0:0:0]} 43. Ra2 {[%emt 0:0:41]} Kf5 {[%emt 0:0:3]} 44. Kf2 {[%emt 0:0:9]} h5 {[%emt 0:0:16]} 45. h3 {[%emt 0:0:12]} h4 {[%emt 0:0:8]} 46. Ra5+ {[%emt 0:0:0]} Kf6 {[%emt 0:0:5]} 47. gxh4 {[%emt 0:0:4]} Rxh3 {[%emt 0:0:21]} 48. b4 {[%emt 0:0:3]} Rxh4 {[%emt 0:0:4]} 49. Ke3 {[%emt 0:0:3]} Ke6 {[%emt 0:0:12]
} 50. Rg5 {[%emt 0:0:6]} Rh3+ {[%emt 0:0:10]} 51. Kxe4 {[%emt 0:0:7]
} Rh4+ {[%emt 0:0:1]} 52. Ke3 {[%emt 0:0:3]} Rxb4 {[%emt 0:0:0]} 53. Rxg6+ {[%emt 0:0:1]} Kf5 {[%emt 0:0:2]} 1/2-1/2